Workbook

Sheet Introduction
A1: ATTENTION!
A2: IF YOU SEE THIS, YOU HAVE MACROS DISABLED OR RESTRICTED
A4: PLEASE ENABLE MACROS FOR THIS TOOLBOX TO FUNCTION PROPERLY
A5: TO DO THIS, CLICK ON "TOOLS" IN THE MENU ABOVE, FIND THE OPTION "MACRO", DRAG YOUR CURSOR OVER IT, THEN CLICK "SECURITY"
A6: UNDER THE SECURITY LEVEL TAB, CLICK THE OPTION FOR "MEDIUM" LEVEL SECURITY, THEN CLOSE AND RELOAD THIS FILE
A7: Energy $mart Schools
A8: NYSED Capital & Maintenance Planning Reports Toolbox
A9: (For Producing Comprehensive Maintenance Plans, Five-Year Capital Facilities Plans & Facility Report Cards)
A10: INTRODUCTION
A11: This template was designed by the New York State Energy Research and Development Authority and the New York State Education Department to help New York Schools produce required annual reports easily and effectively. After you enter your schools' data once, it will print out on three reports. The Toolbox also acts as a database that can be easily updated each year. Some of the appendices contained in the Toolbox provide templates for a Preventive Maintenance (PM) program.
A12: In addition to reducing your paperwork, organizing your building data and your requests for expenses between your Five-Year Capital Facilities Plan, your Facility Report Cards and your Comprehensive Maintenance Plan (CMP), this template tries to serve a variety of objectives, including:
A13: ► Fulfill NYSED Commissioner’s Regulation 155.4(d)(2) to develop and annually update a Comprehensive Maintenance Plan (CMP).
A14: ► Help ensure that all school buildings in New York State are maintained in a state of good repair, combing data from the CMP and Report Cards.
A15: ► Help Superintendents of Buildings and Grounds (SBGs) manage operating costs (energy, annual maintenance, and repairs) with effective maintenance.
A16: ► Help improve occupant health, safety and comfort
A17: ► Help justify capital expenses that reduce energy or maintenance costs.
A18: ► Focus preventive maintenance approaches to improve overall maintenance.
A19: ► Document capital expenses above and beyond annual costs (for service contracts, supplies, and reoccurring costs) that will be included in the Five-Year Capital Facilities Plans. By showing the benefits of these capital expenses in reducing maintenance and energy costs, it will help justify each year's capital costs.
A20: INSTRUCTIONS
A22: 1) Beginning with the yellow General Info tab, fill in all information as prompted. The information provided on the General Info tab will automatically transfer to the other tabs in the spreadsheet, so the information only needs to be provided once.
A23: 2) Continue to fill out the other yellow tabs. Additional instructions highlighted at the top of each page.
A24: 3) The green tabs are used only to review and print the Five Year Capital Plan and the Facility Report Card. No data needs to be entered on the green tabs, but an idividual school's Capital Plan budget or an individual school's Report Card can be viewed before printing.
A25: 4) The blue Appendix tabs are there as resources, but will not be included in reports unless selected.
A26: 5) When information is entered, use the print button below to generate the reports. The individual tabs throughout the tool are also print-formatted, so each report can be printed as needed.

Sheet General Info
A1: In addition to being an input page, this page also serves as the cover page for the CMP.
A3: Energy $mart Schools
A4: Comprehensive Maintenance Plan (CMP)
A5: GENERAL INFORMATION
A7: Date: | B7: 2005-02-01 | C7: Person Preparing this Plan: | D7: John Doe
A8: School District: | B8: Sample Town CSD | C8: Title/Position | D8: Superintendent of Buildings and Grounds
A9: BOCES: | B9: Valley View BOCES | C9: Address: | D9: 101 Main Street
A10: Plan Year: | B10: 2005 | C10: City: | D10: Albany
A11: Number of Schools in District: | B11: 4 | C11: State: | D11: NY
A12: Number of Buildings in District: | B12: 4 | C12: Zip: | D12: 12345
C13: Telephone: | D13: 999-999-9999
C14: Fax: | D14: 888-888-8888
C15: E-mail: | D15: test@imagine.com
A16: Please use the following space to list the people who prepared this plan and the resources used:
A17: People and resources here.

Sheet Facilities Inventory
A1: Energy $mart Schools
A2: =CONCATENATE("District: ",'General Info'!B8, " Prepared by: ",'General Info'!D7, " Date: ",TEXT('General Info'!B7,"mm/dd/yyyy")) -> District: Sample Town CSD Prepared by: John Doe Date: 02/01/2005
A3: FACILITIES INVENTORY
A4: Name of School/Facility | B4: Elementary Elementary School | C4: Good Grades Middle School | D4: Example School 3 | E4: Example School 4 | F4: Example School 5 | G4: Example School 6
A5: BEDS Code | B5: 123456789 | C5: 987654321
A6: Street Address | B6: 1234 Willow Road | C6: 9 Chain Road
A7: City | B7: Sacketts Harbor | C7: Albany
A8: State | B8: NY | C8: NY
A9: ZIP | B9: 12345 | C9: 12345
A10: Year Built | B10: 1958 | C10: 1967
A11: Square Footage | B11: 95000 | C11: 100300
A12: # of Floors | B12: 2 | C12: 1
A13: Basement? | B13: Yes | C13: No
A14: Enrollment | B14: 1175 | C14: 1200
A15: Capacity | B15: 1200 | C15: 1500
A16: Grades | B16: K-6 | C16: 6-8
A17: Ownership Type: | B17: Owned | C17: Operated
A18: Primary Heat Source: | B18: Natural Gas | C18: Oil
B19: =B4 -> Elementary Elementary School | C19: Good Grades Middle School | D19: Example School 3 | E19: Example School 4 | F19: Example School 5 | G19: Example School 6
A20: Certificate of Occupancy Status: | B20: Annual | C20: 30 Day Temp
A21: Expiration Date: | B21: 2002-07-02 | C21: 2002-09-05
A22: Location where certificate of occupancy is posted: | B22: File Room | C22: File Room
A23: Can upgrades to school building systems be viewed on Building Condition Survey? | B23: Yes | C23: No
A24: Can the number of different types of program spaces currently in this school building be viewed on the Building Condition Survey? | B24: No | C24: Yes
A25: Date current 5-year building condition survey conducted: | B25: 2003-06-05 | C25: 2003-04-03
A26: Overall school building safety rating from Building Condition Survey as certified by the Board of Education: | B26: Satisfactory | C26: Excellent
A27: Date current year annual visual inspection was conducted: | B27: 2003-05-03 | C27: 2004-06-03
A28: Overall condition: | B28: Good | C28: Excellent
A29: Can estimated remaining useful life of school building and systems be viewed on the Building Condition Survey? | B29: Yes | C29: No
A30: Probable Useful Life of Building (years): | B30: 20 | C30: 40
A31: Estimated Replacement Value: | B31: 100000 | C31: 50000
A32: Can the need for routine maintenance, repairs, rehabilitation, reconstruction, and construction be viewed on the Capital Facilities Plan? | B32: Yes | C32: No
A33: Original Construction Square Footage: | B33: 80000
A34: Addition #1 Construction Year: | B34: 1959
A35: Addition #1 Square Footage: | B35: 1000
A36: Addition #2 Construction Year: | B36: 1962
A37: Addition #2 Square Footage: | B37: 2000
A38: Addition #3 Construction Year: | B38: 1965
A39: Addition #3 Square Footage: | B39: 3000
A40: Addition #4 Construction Year: | B40: 1970
A41: Addition #4 Square Footage:
A42: Addition #5 Construction Year:
A43: Addition #5 Square Footage:
A44: Addition #6 Construction Year:
A45: Addition #6 Square Footage:
A46: Addition #7 Construction Year:
A47: Addition #7 Square Footage:
A48: Addition #8 Construction Year:
A49: Addition #8 Square Footage:
A50: Addition #9 Construction Year:
A51: Addition #9 Square Footage:
A52: Addition #10 Construction Year:
A53: Addition #10 Square Footage:
A54: For each building, list any current unsatisfactory building systems that have not been corrected since the previous Building Condition Survey:
A55: =B4 -> Elementary Elementary School | B55: Building systems listed here.
A56: =C4 -> Good Grades Middle School | B56: Building systems listed here.
A57: =D4 -> Example School 3 | B57: Building systems listed here.
A58: =E4 -> Example School 4 | B58: Building systems listed here.
A59: =F4 -> Example School 5 | B59: Building systems listed here.
A60: =G4 -> Example School 6 | B60: Building systems listed here.

Sheet CMP Overview
A1: Provide a detailed description of the maintained conditions for each school building in the District compared to a year ago. Use information from the yearly Visual Inspections and the original Building Condition Survey Reports to help track the progress being made. This is also a good place to highlight items such as: how persistent problems have been solved; energy-efficiency projects being implemented; and new approaches being taken (e.g., trying new computerized maintenance management software).
A3: Energy $mart Schools
A4: =CONCATENATE("District: ",'General Info'!B8, " Prepared by: ",'General Info'!D7, " Date: ",TEXT('General Info'!B7,"mm/dd/yyyy")) -> District: Sample Town CSD Prepared by: John Doe Date: 02/01/2005
A5: OVERVIEW
A6: Summary of Overall Conditions
A7: School Name | B7: General Conditions and Goals
A8: ='Facilities Inventory'!B4 -> Elementary Elementary School | B8: Insert assessment here…
A9: ='Facilities Inventory'!C4 -> Good Grades Middle School | B9: Insert assessment here…
A10: ='Facilities Inventory'!D4 -> Example School 3 | B10: Insert assessment here…
A11: ='Facilities Inventory'!E4 -> Example School 4 | B11: Insert assessment here…
A12: ='Facilities Inventory'!F4 -> Example School 5 | B12: Insert assessment here…
A13: ='Facilities Inventory'!G4 -> Example School 6 | B13: Insert assessment here…
A14: Work Order Systems
A15: To help with unplanned maintenance and repairs, do you have a work-order system in place? | F15: Yes/No
A16: If yes, approximately how many work orders were completed last year?
A17: Service Contracts
A18: Indicate all systems that have preventive maintenance (PM) or service and repairs performed under service contracts with outside contractors.
C19: Yes/No | G19: Yes/No
A20: Heating | C20: Yes | D20: Computer/PA | G20: Yes
A21: Air Handling | C21: Yes | D21: Roof | G21: Yes
A22: Cooling | C22: Yes | D22: Backup Power | G22: No
A23: HVAC Controls | C23: Yes | D23: Electrical Distribution | G23: Yes
A24: Fire Protection/Suppression | C24: Yes | D24: Lighting | G24: Yes
A25: Plumbing | C25: Yes | D25: Landscaping | G25: No
A26: Other | C26: Yes | D26: Other | G26: No
A27: Has the District compared costs of these contracts with in-house costs to ascertain whether the service contracts are cost-effective? | G27: Yes

Sheet Budgets
A1: Use these tables to document the estimated budget costs to 1) restore buildings to a state of good repair, 2) keep buildings in a state of good repair, and 3) project O&M costs. This material will become part of the annual Facility Report Card and will help justify annual maintenance expenses. The table at the top is the DISTRICT SUMMARY. Dollar values entered in the school level tables below the District Summary will automatically total in the District Summary Table.
A3: Energy $mart Schools
A4: =CONCATENATE("District: ",'General Info'!B8, " Prepared by: ",'General Info'!D7, " Date: ",TEXT('General Info'!B7,"mm/dd/yyyy")) -> District: Sample Town CSD Prepared by: John Doe Date: 02/01/2005
A5: DISTRICT LEVEL BUDGET SUMMARY
B6: Estimated Costs to Restore Buildings to a State of Good Repair | D6: Estimated Annual Costs to Keep Buildings in a State of Good Repair | F6: Projected Budget for O&M Costs
A7: Element | B7: Cost Estimate | C7: Notes | D7: Cost Estimate | E7: Notes | F7: Cost Estimate | G7: Notes
A8: Site Elements | B8: =+B23+B39+B55+B71+B87+B103 -> 11000 | D8: =+D23+D39+D55+D71+D87+D103 -> 2000 | F8: =+F23+F39+F55+F71+F87+F103 -> 3000
A9: Roofing | B9: 12000 | D9: 9000 | F9: 6000
A10: Envelope Elements | B10: 0 | D10: 0 | F10: 0
A11: Structural Interior | B11: 0 | D11: 0 | F11: 0
A12: Elements/Finishes | B12: 0 | D12: 0 | F12: 0
A13: Electrical | B13: 0 | D13: 0 | F13: 0
A14: Plumbing | B14: 0 | D14: 0 | F14: 0
A15: HVAC | B15: 0 | D15: 0 | F15: 0
A16: Special Construction | B16: 0 | D16: 0 | F16: 0
A17: Emergency Systems (fire alarm, sprinklers, public address, etc.) | B17: 0 | D17: 0 | F17: 0
A18: Other | B18: 0 | D18: 0 | F18: 0
A19: TOTAL Estimated Cost | B19: =SUM(B8:B18) -> 23000 | D19: =SUM(D8:D18) -> 11000 | F19: =SUM(F8:F18) -> 9000
A20: ='Facilities Inventory'!B4 -> Elementary Elementary School
B21: Estimated Costs to Restore Buildings to a State of Good Repair | D21: Estimated Annual Costs to Keep Buildings in a State of Good Repair | F21: Projected Budget for O&M Costs
B22: Cost Estimate | C22: Justification | D22: Cost Estimate | E22: Justification | F22: Cost Estimate | G22: Justification
A23: Site Elements | B23: 1000 | C23: Stop erosion at Ballfield 1. | D23: 2000 | F23: 3000
A24: Roofing | B24: 4000 | D24: 5000 | F24: 6000
A25: Envelope Elements
A26: Structural Interior
A27: Elements/Finishes
A28: Electrical
A29: Plumbing
A30: HVAC
A31: Special Construction
A32: Emergency Systems (fire alarm, sprinklers, public address, etc.)
A33: Other
A34: TOTAL Estimated Cost | B34: =SUM(B23:B33) -> 5000 | D34: =SUM(D23:D33) -> 7000 | F34: =SUM(F23:F33) -> 9000
A36: ='Facilities Inventory'!C4 -> Good Grades Middle School
B37: Estimated Costs to Restore Buildings to a State of Good Repair | D37: Estimated Annual Costs to Keep Buildings in a State of Good Repair | F37: Projected Budget for O&M Costs
B38: Cost Estimate | C38: Justification | D38: Cost Estimate | E38: Justification | F38: Cost Estimate | G38: Justification
A39: Site Elements | B39: 10000
A40: Roofing | B40: 8000 | D40: 4000
A41: Envelope Elements
A42: Structural Interior
A43: Elements/Finishes
A44: Electrical
A45: Plumbing
A46: HVAC
A47: Special Construction
A48: Emergency Systems (fire alarm, sprinklers, public address, etc.)
A49: Other
A50: TOTAL Estimated Cost | B50: =SUM(B39:B49) -> 18000 | D50: =SUM(D39:D49) -> 4000 | F50: =SUM(F39:F49) -> 0
A52: ='Facilities Inventory'!D4 -> Example School 3
B53: Estimated Costs to Restore Buildings to a State of Good Repair | D53: Estimated Annual Costs to Keep Buildings in a State of Good Repair | F53: Projected Budget for O&M Costs
B54: Cost Estimate | C54: Justification | D54: Cost Estimate | E54: Justification | F54: Cost Estimate | G54: Justification
A55: Site Elements
A56: Roofing
A57: Envelope Elements
A58: Structural Interior
A59: Elements/Finishes
A60: Electrical
A61: Plumbing
A62: HVAC
A63: Special Construction
A64: Emergency Systems (fire alarm, sprinklers, public address, etc.)
A65: Other
A66: TOTAL Estimated Cost | B66: =SUM(B55:B65) -> 0 | D66: =SUM(D55:D65) -> 0 | F66: =SUM(F55:F65) -> 0
A68: ='Facilities Inventory'!E4 -> Example School 4
B69: Estimated Costs to Restore Buildings to a State of Good Repair | D69: Estimated Annual Costs to Keep Buildings in a State of Good Repair | F69: Projected Budget for O&M Costs
B70: Cost Estimate | C70: Justification | D70: Cost Estimate | E70: Justification | F70: Cost Estimate | G70: Justification
A71: Site Elements
A72: Roofing
A73: Envelope Elements
A74: Structural Interior
A75: Elements/Finishes
A76: Electrical
A77: Plumbing
A78: HVAC
A79: Special Construction
A80: Emergency Systems (fire alarm, sprinklers, public address, etc.)
A81: Other
A82: TOTAL Estimated Cost | B82: =SUM(B71:B81) -> 0 | D82: =SUM(D71:D81) -> 0 | F82: =SUM(F71:F81) -> 0
A84: ='Facilities Inventory'!F4 -> Example School 5
B85: Estimated Costs to Restore Buildings to a State of Good Repair | D85: Estimated Annual Costs to Keep Buildings in a State of Good Repair | F85: Projected Budget for O&M Costs
B86: Cost Estimate | C86: Justification | D86: Cost Estimate | E86: Justification | F86: Cost Estimate | G86: Justification
A87: Site Elements
A88: Roofing
A89: Envelope Elements
A90: Structural Interior
A91: Elements/Finishes
A92: Electrical
A93: Plumbing
A94: HVAC
A95: Special Construction
A96: Emergency Systems (fire alarm, sprinklers, public address, etc.)
A97: Other
A98: TOTAL Estimated Cost | B98: =SUM(B87:B97) -> 0 | D98: =SUM(D87:D97) -> 0 | F98: =SUM(F87:F97) -> 0
A100: ='Facilities Inventory'!G4 -> Example School 6
B101: Estimated Costs to Restore Buildings to a State of Good Repair | D101: Estimated Annual Costs to Keep Buildings in a State of Good Repair | F101: Projected Budget for O&M Costs
B102: Cost Estimate | C102: Justification | D102: Cost Estimate | E102: Justification | F102: Cost Estimate | G102: Justification
A103: Site Elements
A104: Roofing
A105: Envelope Elements
A106: Structural Interior
A107: Elements/Finishes
A108: Electrical
A109: Plumbing
A110: HVAC
A111: Special Construction
A112: Emergency Systems (fire alarm, sprinklers, public address, etc.)
A113: Other
A114: TOTAL Estimated Cost | B114: =SUM(B103:B113) -> 0 | D114: =SUM(D103:D113) -> 0 | F114: =SUM(F103:F113) -> 0

Sheet PM
A1: Energy $mart Schools
A2: =CONCATENATE("District: ",'General Info'!B8, " Prepared by: ",'General Info'!D7, " Date: ",TEXT('General Info'!B7,"mm/dd/yyyy")) -> District: Sample Town CSD Prepared by: John Doe Date: 02/01/2005
A3: PREVENTIVE MAINTENANCE PLAN
A5: Preventive Maintenance (PM) typically provides significant benefits such as:
A7: · Lower overall maintenance costs versus correcting problems after they occur;
A8: · Reduce equipment down time;
A9: · Lower energy costs by maintaining systems in a more efficient operating condition;
A10: · Lower replacement costs through longer equipment life;
A11: · Improve indoor environment; and
A12: · Improve occupant comfort, health and safety.
A14: Approach Used in this District
A15: Does the District perform PM? If so, what types of systems do you use (e.g., informal schedules, formal schedules with charts for maintenance intervals, computerized maintenance management systems (CMMS) with PM assignments automatically generated)?
A16: Example: We use a spreadsheet systems with all our major equipment and the maintenance intervals recommended in the O&M manuals. Our Office Manager …
A17: Lessons Learned
A18: What lessons have been learned in the District about the usefulness of PM? What works best and what doesn’t work well that can be shared with other Districts?
A20: Checklist of Items Being Serviced Through PM
A21: Performing PM is one way of demonstrating that the District takes good care of existing systems and deserves State funding when those systems eventually wear out. The PM Checklist in Appendix A can be used to show which systems are maintained with PM. The list can also serve as a prompt to work with systems that may have needed more regular PM. The list should only be considered a starting point and how it is used will depend on the District's specific needs.

Sheet Health & Safety
A1: Energy $mart Schools
A2: =CONCATENATE("District: ",'General Info'!B8, " Prepared by: ",'General Info'!D7, " Date: ",TEXT('General Info'!B7,"mm/dd/yyyy")) -> District: Sample Town CSD Prepared by: John Doe Date: 02/01/2005
A3: HEALTH & SAFETY
A4: Description of Health and Safety Committee activities: | B4: Yes/No
A5: Does the district have a health and safety committee? | B5: Yes
A6: Does the Health and Safety Committee have a chairperson? | B6: No
A7: - Name | B7: John Milton
A8: - Phone Number | B8: 212-867-5309
A9: - Email | B9: milty@school.com
A10: Does the Health and Safety Committee membership include:
A11: - District Officials | B11: Yes
A12: - Staff | B12: No
A13: - Bargaining Units | B13: Yes
A14: - Parents | B14: No
A15: Did the Health and Safety Committee receive any type of training? | B15: Yes
A16: Health and Safety Committee membership expanded during construction to include district officials, staff, bargaining units, parents and:
A17: - Project Architect | B17: Yes
A18: - Project Engineer | B18: Yes
A19: - Construction Manager | B19: No
A20: - Contractors | B20: Yes
A21: Frequency of Health and Safety Committee meetings (check one): | B21: 3-5 Times / School Year
A22: ENVIRONMENTAL AWARENESS
A23: SCHOOL/FACILITY: | B23: ='Facilities Inventory'!B4 -> Elementary Elementary School | C23: ='Facilities Inventory'!C4 -> Good Grades Middle School | D23: ='Facilities Inventory'!D4 -> Example School 3 | E23: ='Facilities Inventory'!E4 -> Example School 4 | F23: ='Facilities Inventory'!F4 -> Example School 5 | G23: ='Facilities Inventory'!G4 -> Example School 6
A24: Environmental Awareness | B24: Yes/No | C24: Yes/No | D24: Yes/No | E24: Yes/No | F24: Yes/No | G24: Yes/No
A25: Has this building been tested for the presence of lead: paints, plumbing, etc.? | B25: Yes | C25: Yes
A26: Based on the testing results, are there elements in this building that would require construction or maintenance projects to be conducted in accordance with the US Department of Housing and Urban Development Guidelines for the Evaluation and Control of Lead Based Paint Hazards in Housing? | B26: No | C26: Yes
A27: If yes, has this type of work been done in accordance with the Guidelines? | B27: Yes | C27: Yes
A28: Does this building contain known or assumed Asbestos Containing Building Materials? (ACBM) | B28: No | C28: Yes
A29: If yes, has an original Asbestos Hazard Emergency Response Act (AHERA) management plan been developed for this building? (The AHERA Management Plan for this building must be able to be viewed at the main office during normal business hours). | B29: Yes | C29: Yes
A30: When was the AHERA management plan last updated? | B30: 2004-04-04 | C30: 2003-03-03
A31: Has the district reviewed the geological potential for the presence of radon from the New York State Dept. of Health Radon Measurement Database? | B31: Yes | C31: Yes
A32: Did the geological potential indicate testing this facility was necessary? | B32: No | C32: Yes
A33: If yes, did the highest test in this building exceed 4pCi/L? | B33: Yes | C33: Yes
A34: If yes, describe mitigation activities:
A35: ='Facilities Inventory'!B4 -> Elementary Elementary School | B35: Mitigation activities described here.
A36: ='Facilities Inventory'!C4 -> Good Grades Middle School | B36: Mitigation activities described here.
A37: ='Facilities Inventory'!D4 -> Example School 3 | B37: Mitigation activities described here.
A38: ='Facilities Inventory'!E4 -> Example School 4 | B38: Mitigation activities described here.
A39: ='Facilities Inventory'!F4 -> Example School 5 | B39: Mitigation activities described here.
A40: ='Facilities Inventory'!G4 -> Example School 6 | B40: Mitigation activities described here.

Sheet Integrated Pest Management
A1: Indicate below which measures have been taken to achieve acceptable Integrated Pest Management.
A3: Energy $mart Schools
A4: =CONCATENATE("District: ",'General Info'!B8, " Prepared by: ",'General Info'!D7, " Date: ",TEXT('General Info'!B7,"mm/dd/yyyy")) -> District: Sample Town CSD Prepared by: John Doe Date: 02/01/2005
A5: INTEGRATED PEST MANAGEMENT
A6: SCHOOL/FACILITY: | B6: ='Facilities Inventory'!B4 -> Elementary Elementary School | C6: ='Facilities Inventory'!C4 -> Good Grades Middle School | D6: ='Facilities Inventory'!D4 -> Example School 3 | E6: ='Facilities Inventory'!E4 -> Example School 4 | F6: ='Facilities Inventory'!F4 -> Example School 5 | G6: ='Facilities Inventory'!G4 -> Example School 6
A7: Status of measures to assure acceptable integrated pest management: | B7: Yes/No | C7: Yes/No | D7: Yes/No | E7: Yes/No | F7: Yes/No | G7: Yes/No
A8: Does this building have an Integrated Pest Management program? See Appendix B. | B8: Yes | C8: Yes
A9: Does this building have a person designated to oversee the pest management program? | B9: No | C9: Yes
A10: Has this building established a list of persons to notify at least 48 hours prior to the application of pesticides? | B10: Yes | C10: Yes
A11: Have pesticide application summary reports been provided to all parents and staff pursuant to CR 155.24? | B11: No | C11: Yes

Sheet Indoor Environment Quality
A1: Use this table to provide information for your District’s School Facility Report Cards and the CMP. Complete for each building in the District, and both a District-summary table and individual Report Card sections will be produced.
A3: Energy $mart Schools
A4: =CONCATENATE("District: ",'General Info'!B8, " Prepared by: ",'General Info'!D7, " Date: ",TEXT('General Info'!B7,"mm/dd/yyyy")) -> District: Sample Town CSD Prepared by: John Doe Date: 02/01/2005
A5: INDOOR ENVIRONMENTAL QUALITY
A6: SCHOOL/FACILITY: | B6: ='Facilities Inventory'!B4 -> Elementary Elementary School | C6: ='Facilities Inventory'!C4 -> Good Grades Middle School | D6: ='Facilities Inventory'!D4 -> Example School 3 | E6: ='Facilities Inventory'!E4 -> Example School 4 | F6: ='Facilities Inventory'!F4 -> Example School 5 | G6: ='Facilities Inventory'!G4 -> Example School 6
A7: Status of actions and policies taken to assure acceptable indoor environmental quality: | B7: Yes/No | C7: Yes/No | D7: Yes/No | E7: Yes/No | F7: Yes/No | G7: Yes/No
A8: Does this building use the US Environmental Protection Agency’s Indoor Air Quality Tools for Schools Action Kit? | B8: Yes | C8: No
A9: Does this building have a procedure in place for reporting indoor environmental quality concerns? | B9: Yes | C9: No
A10: Is ventilation with outdoor air available in all occupied spaces? | B10: Yes | C10: No
A11: 1) Is all ventilation and exhaust equipment operational? | B11: Yes | C11: No
A12: 2) Are all outdoor air intakes unobstructed and clear of foreign objects? | B12: Yes | C12: No
A13: 3) Are all outside air damper controls in place and operational? | B13: Yes | C13: Yes
A14: 4) Have facilities operations been reviewed with respect to impact on outside air intakes (i.e., vehicle emissions, waste storage, mowing, etc.)? | B14: Yes | C14: Yes
A15: Are there any unresolved complaints regarding the indoor environment at this facility? | B15: Yes | C15: Yes
A16: If yes, describe for each building:
A17: ='Facilities Inventory'!B4 -> Elementary Elementary School | B17: IEQ description here.
A18: ='Facilities Inventory'!C4 -> Good Grades Middle School | B18: IEQ description here.
A19: ='Facilities Inventory'!D4 -> Example School 3 | B19: IEQ description here.
A20: ='Facilities Inventory'!E4 -> Example School 4 | B20: IEQ description here.
A21: ='Facilities Inventory'!F4 -> Example School 5 | B21: IEQ description here.
A22: ='Facilities Inventory'!G4 -> Example School 6 | B22: IEQ description here.
A23: Are the heating, ventilation, and air conditioning equipment cleaned and maintained in accordance with manufacturer’s instructions (e.g., filter changes, coils cleaned, etc.)? | B23: Yes | C23: Yes
A24: Has the interior of ductwork (air passageways) been inspected for cleanliness within the past year? | B24: No | C24: Yes
A25: Have exterior ductwork and rooftop air handling units been inspected for leaks within the past year? | B25: Yes | C25: No
A26: Does the District have a policy encouraging the use of environmentally friendly products? | B26: No | C26: Yes
A27: Does the District annually review products used in and around the building with the intent of reducing or eliminating hazardous chemicals that occupants and visitors are exposed to, including volatile organic compounds (VOCs), semi-volatile organic compounds, etc. (cleaning supplies, repair and maintenance supplies, materials, etc.)? | B27: Yes | C27: Yes
A28: Does the District perform an annual review to ensure hazardous chemicals used as part of instructional programs are used and stored properly? | B28: No | C28: Yes
A29: Is each building inspected for roof leaks, growth of mold and mildew, evidence of rodent infiltration, and other indicators of potential problems to acceptable IEQ? | B29: Yes | C29: Yes
A30: What level (dB) of maximum background accoustic settings has been set for classrooms? | B30: 35 | C30: 70
A31: Does this facility regularly test and record levels of CO, CO2, total VOCs, Radon, mold spores, etc? | B31: Yes | C31: Yes
A32: Does this facility regularly measure and track relative humidity levels? | B32: Yes | C32: Yes
A33: Does this facility verify lighting levels meet Illuminating Engineering Society guidelines each year? | B33: Yes | C33: Yes
A34: Does this facility follow green cleaning guidelines? | B34: No | C34: No
A35: Is this facility seeking to comply with a whole building sustainable guideline, such as the U.S. Green Building Council's LEED® for Existing Buildings? | B35: Yes | C35: No

Sheet Energy
A1: Use this table to record your District’s energy benchmarking score compared to other New York schools. Complete for each building in the District. See Appendix E, Best Practices for additional information the US EPA Energy Star Portfolio Manager and the New York State Energy Research and Development Authority (NYSERDA) Energy Smart Schools Program free energy benchmarking service.
A3: Energy $mart Schools
A4: =CONCATENATE("District: ",'General Info'!B8, " Prepared by: ",'General Info'!D7, " Date: ",TEXT('General Info'!B7,"mm/dd/yyyy")) -> District: Sample Town CSD Prepared by: John Doe Date: 02/01/2005
A5: ENERGY BENCHMARKING
A6: SCHOOL/FACILITY: | B6: ='Facilities Inventory'!B4 -> Elementary Elementary School | D6: ='Facilities Inventory'!C4 -> Good Grades Middle School | F6: ='Facilities Inventory'!D4 -> Example School 3 | H6: ='Facilities Inventory'!E4 -> Example School 4 | J6: ='Facilities Inventory'!F4 -> Example School 5 | L6: ='Facilities Inventory'!G4 -> Example School 6
A7: Status of measures taken to optimize energy use: | B7: Current Year | C7: Last Year | D7: Current Year | E7: Last Year | F7: Current Year | G7: Last Year | H7: Current Year | I7: Last Year | J7: Current Year | K7: Last Year | L7: Current Year | M7: Last Year
A8: What was this building’s score in the U.S. Environmental Protection Agency’s Energy Star® Portfolio Manager? | B8: 60 | C8: 50 | D8: 60 | E8: 50
B9: Yes/No | D9: Yes/No | F9: Yes/No | H9: Yes/No | J9: Yes/No | L9: Yes/No
A10: Has this building’s energy use been benchmarked using NYSERDA’s Energy Smart Schools Program against other New York schools? | B10: Yes | D10: No
A11: Do you follow the U.S. Environmental Protection Agency’s ENERGY STAR® and U.S. Department of Energy’s FEMP purchasing standards? | B11: No | D11: No
A12: Who manages the energy use for this building (Name and Title)?
A14: Estimated electricity costs for current year (In Dollars): | B14: 35000 | D14: 20000
A15: Estimated natural gas costs for current year (In Dollars): | B15: 40000 | D15: 0
A16: Estimated fuel oil costs for current year (In Dollars): | B16: 0 | D16: 18000
A17: Estimated other energy costs for current year (In Dollars): | B17: 3000 | D17: 5000
A18: Estimated electricity consumption for next year (In kWh): | B18: 250000 | D18: 400000
A19: Estimated natural gas consumption for next year (In Therms): | B19: 200000 | D19: 0
A20: Estimated fuel oil consumption for next year (In Gallons): | B20: 0 | D20: 40000
A21: Estimated other energy consumption for next year (List Units Here): | B21: 0 | D21: 0
A22: What is the facility's goal to score in the Portfolio Manager in one year ? | B22: 60 | D22: 60
A23: What is the facility's goal to score in the Portfolio Manager in three years? | B23: 75 | D23: 75

Sheet Current Projects
A1: Use this table to demonstrate the benefits of the major projects implementing in the District. Explain how major repairs, replacements, and energy-efficiency upgrades: reduce energy costs; reduce unnecessary repair/replacement costs by keeping equipment operating properly (life extension); improve occupant comfort, health, and indoor environmental quality; and reduce maintenance costs by replacing/upgrading equipment that requires frequent attention.
A3: Energy $mart Schools
A4: =CONCATENATE("District: ",'General Info'!B8, " Prepared by: ",'General Info'!D7, " Date: ",TEXT('General Info'!B7,"mm/dd/yyyy")) -> District: Sample Town CSD Prepared by: John Doe Date: 02/01/2005
A5: MAJOR PROJECTS DURING LAST YEAR
A6: SED # (if applicable) | B6: Brief Project Description | D6: Project Dates | E6: Costs | F6: Project Benefits
A7: SED #00-00-00-00-0-000 | B7: Example: New Boiler Controls | D7: 5/5/03 to 9/5/03 | E7: 120000 | F7: Reduce energy costs $150/year, eliminate frequent repairs.
A23: TOTAL | E23: =SUM(E7:E22) -> 120000

Sheet Planned Projects
A1: In the table below, list all capital projects anticipated over the next five years. In the last column, indicate the benefits of the capital projects for the CMP by describing how they will lower energy costs, decrease annual service-and-repair costs, or improve life/health/safety conditions.
A3: Energy $mart Schools
A4: =CONCATENATE("District: ",'General Info'!B8, " Prepared by: ",'General Info'!D7, " Date: ",TEXT('General Info'!B7,"mm/dd/yyyy")) -> District: Sample Town CSD Prepared by: John Doe Date: 02/01/2005
A5: PLANNED CAPITAL PROJECTS
A6: Facility Name | B6: SED Number | C6: Project Description | D6: Year | E6: Priority | F6: Construction Type | G6: Project Type | H6: Funding Source | I6: Cost | J6: Annual Benefits | K6: Notes
A7: Elementary Elementary School | B7: 43305439053 | C7: New RTUs | D7: 2 | E7: 1 | F7: New Construction | G7: Major System | H7: Capital | I7: 30000
A8: Elementary Elementary School | B8: 121212121234124 | C8: New Windows | D8: 5 | E8: 3 | F8: Addition | G8: Health/Safety | H8: Capital | I8: 20000
A9: Elementary Elementary School | B9: 34059384535 | C9: Treat pest problems in 36 classrooms | D9: 2 | E9: 3 | F9: Alteration | G9: Health/Safety | H9: Bond | I9: 10000
A10: Good Grades Middle School | B10: 121212121234124 | C10: Example | D10: 1 | E10: 2 | F10: Alteration | G10: Energy | H10: Bond | I10: 15600 | J10: 12000 | K10: Lower energy costs, reduced service contract, and defer planned replacement (est repl cost $250K) by 5-8 years.
A11: Good Grades Middle School | B11: 10294958771729 | C11: Remove remaining asbestos | D11: 4 | E11: 2 | F11: Addition | G11: Health/Safety | H11: Capital | I11: 60000
A12: Elementary Elementary School | B12: 3242309482 | C12: Example | D12: 2 | E12: 2 | F12: Alteration | G12: Major Repair | H12: Bond | I12: 20000 | J12: 4000

Sheet Facility Report Card
A1: Instructions: Click on the yellow highlighted area, then use the drop-down menu to select the building name. The form will fill itself out automatically.
A3: School Facility Report Card
A5: School District/BOCES: | B5: ='General Info'!B8 -> Sample Town CSD | D5: Building Name: | E5: Example School 6 | G5: << Select to change school
A6: School Building Address: | B6: =CONCATENATE(HLOOKUP($E$5,'Facilities Inventory'!$A$4:$G$16,3,FALSE)&" -- "& HLOOKUP($E$5,'Facilities Inventory'!$A$4:$G$16,4,FALSE)&", "&HLOOKUP($E$5,'Facilities Inventory'!$A$4:$G$16,5,FALSE)&" "&HLOOKUP($E$5,'Facilities Inventory'!$A$4:$G$16,6,FALSE)) -> -- ,
A7: Certificate of Occupancy Status: | B7: =HLOOKUP($E$5,'Facilities Inventory'!$A$19:$G$28,2,FALSE) -> 0 | D7: Expiration Date: | E7: =HLOOKUP($E$5,'Facilities Inventory'!$A$19:$G$28,3,FALSE) -> 00:00:00
A8: Location where certificate of occupancy is posted: | C8: =HLOOKUP($E$5,'Facilities Inventory'!$A$19:$G$28,4,FALSE) -> 0
A10: Section I: School Building General Information
A11: 1. Person completing this School Facility Report Card: | C11: ='General Info'!D7 -> John Doe | D11: Date: | E11: ='General Info'!B7 -> 2005-02-01
A12: 2. Right-to-Know designee concerning this school building and School Facility Report Card:
A13: Name: | B13: ='General Info'!D7 -> John Doe | D13: Telephone: | E13: ='General Info'!D13 -> 999-999-9999
A14: Position: | B14: ='General Info'!D8 -> Superintendent of Buildings and Grounds | D14: Fax: | E14: ='General Info'!D14 -> 888-888-8888 | F14: E-mail: | G14: ='General Info'!D15 -> test@imagine.com
A15: Address: | B15: ='General Info'!D9 -> 101 Main Street | D15: City: | E15: ='General Info'!D10 -> Albany | F15: Zip: | G15: ='General Info'!D12 -> 12345
A16: 3.a. Original Construction Date (year): | B16: =HLOOKUP($E$5,'Facilities Inventory'!$A$4:$G$16,7,FALSE) -> 0
A17: 3.b. Present size of school building (SF): | B17: =HLOOKUP($E$5,'Facilities Inventory'!$A$4:$G$16,8,FALSE) -> 0 | C17: Number of floors: | D17: =HLOOKUP($E$5,'Facilities Inventory'!$A$4:$G$16,9,FALSE) -> 0 | E17: Basement? (Yes/No): | F17: =HLOOKUP($E$5,'Facilities Inventory'!$A$4:$G$16,10,FALSE) -> 0
A18: 4. Grade levels currently housed in this building: | B18: =HLOOKUP($E$5,'Facilities Inventory'!$A$4:$G$16,13,FALSE) -> 0 | E18: Current enrollment: | F18: =HLOOKUP($E$5,'Facilities Inventory'!$A$4:$G$16,11,FALSE) -> 0
A19: 5. Upgrades to school building systems can be viewed on the Building Condition Survey? | E19: =HLOOKUP($E$5,'Facilities Inventory'!$A$19:$G$28,5,FALSE) -> 0
A20: 6. Number of different types of program spaces currently in this school building can be viewed on the Building Condition Survey? | E20: =HLOOKUP($E$5,'Facilities Inventory'!$A$19:$G$28,6,FALSE) -> 0
A22: Section II: School Building Ratings
A23: 7. Date current 5-year building condition survey conducted: | E23: =HLOOKUP($E$5,'Facilities Inventory'!$A$19:$G$28,7,FALSE) -> 00:00:00
A24: Overall school building safety rating from Building Condition Survey as certified by the Board of Education: | E24: =HLOOKUP($E$5,'Facilities Inventory'!$A$19:$G$28,8,FALSE) -> 0
A25: 8. Date current year annual visual inspection conducted: | E25: =HLOOKUP($E$5,'Facilities Inventory'!$A$19:$G$28,9,FALSE) -> 00:00:00
A26: Overall condition: | E26: =HLOOKUP($E$5,'Facilities Inventory'!$A$19:$G$28,10,FALSE) -> 0
A28: Section III: Building Capital, Maintenance, and Operations Information
A29: 9. List any current unsatisfactory building systems that have not been corrected since the previous Building Condition Survey. (Add additional sheets as necessary)
B30: =VLOOKUP($E$5,'Facilities Inventory'!A55:G60,2,FALSE) -> Building systems listed here.
A32: 10. Estimated remaining useful life of school building and systems can be viewed on the Building Condition Survey? (Yes/No) | F32: =HLOOKUP(E5,'Facilities Inventory'!A4:G32,26,FALSE) -> 0
A33: 11. The need for routine maintenance, repairs, rehabilitation, reconstruction, and construction can be viewed on the Capital Facilities Plan? (Yes/No) | F33: =HLOOKUP(E5,'Facilities Inventory'!A4:G32,29,FALSE) -> 0
B34: List prioritized health and safety improvements for this facility as indicated in the five year plan:
B35: Year | C35: Priority | D35: Description
B38: Estimated Costs to Restore Buildings to a State of Good Repair | D38: Estimated Annual Costs to Keep Buildings in a State of Good Repair | F38: Projected Budget for O&M Costs
B39: Cost Estimate | D39: Cost Estimate | F39: Cost Estimate
A40: Site Elements | B40: =INDEX((Budgets!$B$23:$G$33,Budgets!$B$39:$G$49,Budgets!$B$55:$G$65,Budgets!$B$71:$G$81,Budgets!$B$87:$G$97,Budgets!$B$103:$G$113),1,1,MATCH($E$5,SchoolNames,0)) -> 0 | D40: =INDEX((Budgets!$B$23:$G$33,Budgets!$B$39:$G$49,Budgets!$B$55:$G$65,Budgets!$B$71:$G$81,Budgets!$B$87:$G$97,Budgets!$B$103:$G$113),1,3,MATCH($E$5,SchoolNames,0)) -> 0 | F40: =INDEX((Budgets!$B$23:$G$33,Budgets!$B$39:$G$49,Budgets!$B$55:$G$65,Budgets!$B$71:$G$81,Budgets!$B$87:$G$97,Budgets!$B$103:$G$113),1,5,MATCH($E$5,SchoolNames,0)) -> 0
A41: Roofing | B41: =INDEX((Budgets!$B$23:$G$33,Budgets!$B$39:$G$49,Budgets!$B$55:$G$65,Budgets!$B$71:$G$81,Budgets!$B$87:$G$97,Budgets!$B$103:$G$113),2,1,MATCH($E$5,SchoolNames,0)) -> 0 | D41: =INDEX((Budgets!$B$23:$G$33,Budgets!$B$39:$G$49,Budgets!$B$55:$G$65,Budgets!$B$71:$G$81,Budgets!$B$87:$G$97,Budgets!$B$103:$G$113),2,3,MATCH($E$5,SchoolNames,0)) -> 0 | F41: =INDEX((Budgets!$B$23:$G$33,Budgets!$B$39:$G$49,Budgets!$B$55:$G$65,Budgets!$B$71:$G$81,Budgets!$B$87:$G$97,Budgets!$B$103:$G$113),2,5,MATCH($E$5,SchoolNames,0)) -> 0
A42: Envelope Elements | B42: =INDEX((Budgets!$B$23:$G$33,Budgets!$B$39:$G$49,Budgets!$B$55:$G$65,Budgets!$B$71:$G$81,Budgets!$B$87:$G$97,Budgets!$B$103:$G$113),3,1,MATCH($E$5,SchoolNames,0)) -> 0 | D42: =INDEX((Budgets!$B$23:$G$33,Budgets!$B$39:$G$49,Budgets!$B$55:$G$65,Budgets!$B$71:$G$81,Budgets!$B$87:$G$97,Budgets!$B$103:$G$113),3,3,MATCH($E$5,SchoolNames,0)) -> 0 | F42: =INDEX((Budgets!$B$23:$G$33,Budgets!$B$39:$G$49,Budgets!$B$55:$G$65,Budgets!$B$71:$G$81,Budgets!$B$87:$G$97,Budgets!$B$103:$G$113),3,5,MATCH($E$5,SchoolNames,0)) -> 0
A43: Structural Interior | B43: =INDEX((Budgets!$B$23:$G$33,Budgets!$B$39:$G$49,Budgets!$B$55:$G$65,Budgets!$B$71:$G$81,Budgets!$B$87:$G$97,Budgets!$B$103:$G$113),4,1,MATCH($E$5,SchoolNames,0)) -> 0 | D43: =INDEX((Budgets!$B$23:$G$33,Budgets!$B$39:$G$49,Budgets!$B$55:$G$65,Budgets!$B$71:$G$81,Budgets!$B$87:$G$97,Budgets!$B$103:$G$113),4,3,MATCH($E$5,SchoolNames,0)) -> 0 | F43: =INDEX((Budgets!$B$23:$G$33,Budgets!$B$39:$G$49,Budgets!$B$55:$G$65,Budgets!$B$71:$G$81,Budgets!$B$87:$G$97,Budgets!$B$103:$G$113),4,5,MATCH($E$5,SchoolNames,0)) -> 0
A44: Elements/Finishes | B44: =INDEX((Budgets!$B$23:$G$33,Budgets!$B$39:$G$49,Budgets!$B$55:$G$65,Budgets!$B$71:$G$81,Budgets!$B$87:$G$97,Budgets!$B$103:$G$113),5,1,MATCH($E$5,SchoolNames,0)) -> 0 | D44: =INDEX((Budgets!$B$23:$G$33,Budgets!$B$39:$G$49,Budgets!$B$55:$G$65,Budgets!$B$71:$G$81,Budgets!$B$87:$G$97,Budgets!$B$103:$G$113),5,3,MATCH($E$5,SchoolNames,0)) -> 0 | F44: =INDEX((Budgets!$B$23:$G$33,Budgets!$B$39:$G$49,Budgets!$B$55:$G$65,Budgets!$B$71:$G$81,Budgets!$B$87:$G$97,Budgets!$B$103:$G$113),5,5,MATCH($E$5,SchoolNames,0)) -> 0
A45: Electrical | B45: =INDEX((Budgets!$B$23:$G$33,Budgets!$B$39:$G$49,Budgets!$B$55:$G$65,Budgets!$B$71:$G$81,Budgets!$B$87:$G$97,Budgets!$B$103:$G$113),6,1,MATCH($E$5,SchoolNames,0)) -> 0 | D45: =INDEX((Budgets!$B$23:$G$33,Budgets!$B$39:$G$49,Budgets!$B$55:$G$65,Budgets!$B$71:$G$81,Budgets!$B$87:$G$97,Budgets!$B$103:$G$113),6,3,MATCH($E$5,SchoolNames,0)) -> 0 | F45: =INDEX((Budgets!$B$23:$G$33,Budgets!$B$39:$G$49,Budgets!$B$55:$G$65,Budgets!$B$71:$G$81,Budgets!$B$87:$G$97,Budgets!$B$103:$G$113),6,5,MATCH($E$5,SchoolNames,0)) -> 0
A46: Plumbing | B46: =INDEX((Budgets!$B$23:$G$33,Budgets!$B$39:$G$49,Budgets!$B$55:$G$65,Budgets!$B$71:$G$81,Budgets!$B$87:$G$97,Budgets!$B$103:$G$113),7,1,MATCH($E$5,SchoolNames,0)) -> 0 | D46: =INDEX((Budgets!$B$23:$G$33,Budgets!$B$39:$G$49,Budgets!$B$55:$G$65,Budgets!$B$71:$G$81,Budgets!$B$87:$G$97,Budgets!$B$103:$G$113),7,3,MATCH($E$5,SchoolNames,0)) -> 0 | F46: =INDEX((Budgets!$B$23:$G$33,Budgets!$B$39:$G$49,Budgets!$B$55:$G$65,Budgets!$B$71:$G$81,Budgets!$B$87:$G$97,Budgets!$B$103:$G$113),7,5,MATCH($E$5,SchoolNames,0)) -> 0
A47: HVAC | B47: =INDEX((Budgets!$B$23:$G$33,Budgets!$B$39:$G$49,Budgets!$B$55:$G$65,Budgets!$B$71:$G$81,Budgets!$B$87:$G$97,Budgets!$B$103:$G$113),8,1,MATCH($E$5,SchoolNames,0)) -> 0 | D47: =INDEX((Budgets!$B$23:$G$33,Budgets!$B$39:$G$49,Budgets!$B$55:$G$65,Budgets!$B$71:$G$81,Budgets!$B$87:$G$97,Budgets!$B$103:$G$113),8,3,MATCH($E$5,SchoolNames,0)) -> 0 | F47: =INDEX((Budgets!$B$23:$G$33,Budgets!$B$39:$G$49,Budgets!$B$55:$G$65,Budgets!$B$71:$G$81,Budgets!$B$87:$G$97,Budgets!$B$103:$G$113),8,5,MATCH($E$5,SchoolNames,0)) -> 0
A48: Special Construction | B48: =INDEX((Budgets!$B$23:$G$33,Budgets!$B$39:$G$49,Budgets!$B$55:$G$65,Budgets!$B$71:$G$81,Budgets!$B$87:$G$97,Budgets!$B$103:$G$113),9,1,MATCH($E$5,SchoolNames,0)) -> 0 | D48: =INDEX((Budgets!$B$23:$G$33,Budgets!$B$39:$G$49,Budgets!$B$55:$G$65,Budgets!$B$71:$G$81,Budgets!$B$87:$G$97,Budgets!$B$103:$G$113),9,3,MATCH($E$5,SchoolNames,0)) -> 0 | F48: =INDEX((Budgets!$B$23:$G$33,Budgets!$B$39:$G$49,Budgets!$B$55:$G$65,Budgets!$B$71:$G$81,Budgets!$B$87:$G$97,Budgets!$B$103:$G$113),9,5,MATCH($E$5,SchoolNames,0)) -> 0
A49: Emergency Systems (fire alarm, sprinklers, public address, etc.) | B49: =INDEX((Budgets!$B$23:$G$33,Budgets!$B$39:$G$49,Budgets!$B$55:$G$65,Budgets!$B$71:$G$81,Budgets!$B$87:$G$97,Budgets!$B$103:$G$113),10,1,MATCH($E$5,SchoolNames,0)) -> 0 | D49: =INDEX((Budgets!$B$23:$G$33,Budgets!$B$39:$G$49,Budgets!$B$55:$G$65,Budgets!$B$71:$G$81,Budgets!$B$87:$G$97,Budgets!$B$103:$G$113),10,3,MATCH($E$5,SchoolNames,0)) -> 0 | F49: =INDEX((Budgets!$B$23:$G$33,Budgets!$B$39:$G$49,Budgets!$B$55:$G$65,Budgets!$B$71:$G$81,Budgets!$B$87:$G$97,Budgets!$B$103:$G$113),10,5,MATCH($E$5,SchoolNames,0)) -> 0
A50: Other | B50: =INDEX((Budgets!$B$23:$G$33,Budgets!$B$39:$G$49,Budgets!$B$55:$G$65,Budgets!$B$71:$G$81,Budgets!$B$87:$G$97,Budgets!$B$103:$G$113),11,1,MATCH($E$5,SchoolNames,0)) -> 0 | D50: =INDEX((Budgets!$B$23:$G$33,Budgets!$B$39:$G$49,Budgets!$B$55:$G$65,Budgets!$B$71:$G$81,Budgets!$B$87:$G$97,Budgets!$B$103:$G$113),11,3,MATCH($E$5,SchoolNames,0)) -> 0 | F50: =INDEX((Budgets!$B$23:$G$33,Budgets!$B$39:$G$49,Budgets!$B$55:$G$65,Budgets!$B$71:$G$81,Budgets!$B$87:$G$97,Budgets!$B$103:$G$113),11,5,MATCH($E$5,SchoolNames,0)) -> 0
A51: TOTAL Estimated Cost | B51: =SUM(B40:B50) -> 0 | D51: =SUM(D40:D50) -> 0 | F51: =SUM(F40:F50) -> 0
A53: 12. Estimated energy costs for current school year by type:
A55: Electricity: | B55: =HLOOKUP($E$5,Energy!$A$6:$M$17,9,FALSE) -> 0 | C55: Gas: | D55: =HLOOKUP($E$5,Energy!$A$6:$M$17,11,FALSE) -> 0
A56: Fuel Oil: | B56: =HLOOKUP($E$5,Energy!$A$6:$M$17,10,FALSE) -> 0 | C56: Other: | D56: =HLOOKUP($E$5,Energy!$A$6:$M$17,12,FALSE) -> 0
A58: Total estimated energy costs: | B58: =SUM(B55:B56)+SUM(D55:D56) -> 0
A60: Section IV: Health and Safety
A61: 13. Description of Health and Safety Committee activities: | E61: Yes/No
B62: a. Does the district have a health and safety committee? | E62: ='Health & Safety'!B5 -> Yes
B63: b. Does the Health and Safety Committee have a chairperson? | E63: ='Health & Safety'!B6 -> No | F63: Name: | G63: ='Health & Safety'!B7 -> John Milton
B64: c. Phone number of Health and Safety Committee Chairperson: | E64: ='Health & Safety'!B8 -> 212-867-5309 | F64: Email: | G64: ='Health & Safety'!B9 -> milty@school.com
B65: d. Basic Health and Safety Committee membership:
B66: - District Officials | E66: ='Health & Safety'!B11 -> Yes
B67: - Staff | E67: ='Health & Safety'!B12 -> No
B68: - Bargaining Units | E68: ='Health & Safety'!B13 -> Yes
B69: - Parents | E69: ='Health & Safety'!B14 -> No
B70: e. Health and Safety Committee membership expanded during construction to include district officials, staff, bargaining units, parents and:
B71: - Project Architect | E71: ='Health & Safety'!B17 -> Yes
B72: - Project Engineer | E72: ='Health & Safety'!B18 -> Yes
B73: - Construction Manager | E73: ='Health & Safety'!B19 -> No
B74: - Contractors | E74: ='Health & Safety'!B20 -> Yes
B75: f. Frequency of Health and Safety Committee meetings (check one): | E75: ='Health & Safety'!B21 -> 3-5 Times / School Year
A77: Section V: Environmental Awareness
A78: 14. Lead testing: | G78: Yes/No
B79: a. Has this building been tested for the presence of lead: paints, plumbing, etc.? | G79: =HLOOKUP($E$5,'Health & Safety'!$A$23:$G$33,3,FALSE) -> 0
B80: b. Based on the testing results, are there elements in this building that would require construction or maintenance projects to be conducted in accordance with the US Department of Housing and Urban Development Guidelines for the Evaluation and Control of Lead Based Paint Hazards in Housing? | G80: =HLOOKUP($E$5,'Health & Safety'!$A$23:$G$33,4,FALSE) -> 0
B81: c. If yes, has this type of work been done in accordance with the Guidelines? | G81: =HLOOKUP($E$5,'Health & Safety'!$A$23:$G$33,5,FALSE) -> 0
A82: 15. Federal Asbestos Hazard Emergency Response Act (AHERA) Plan:
B83: a. Does this building contain known or assumed asbestos containing building materials? (ACBM) | G83: =HLOOKUP($E$5,'Health & Safety'!$A$23:$G$33,6,FALSE) -> 0
B84: b. If yes, has an original AHERA management plan been developed for this building? (The AHERA Management Plan for this building may be viewed at the main office during normal business hours). | G84: =HLOOKUP($E$5,'Health & Safety'!$A$23:$G$33,7,FALSE) -> 0
B85: c. When was the AHERA management plan last updated? | G85: =HLOOKUP($E$5,'Health & Safety'!$A$23:$G$33,8,FALSE) -> 00:00:00
A86: 16. Radon testing:
B87: a. Has the district reviewed the geological potential for the presence of radon from the NYSDOH Radon Measurement Database? | G87: =HLOOKUP($E$5,'Health & Safety'!$A$23:$G$33,9,FALSE) -> 0
B88: b. Did the geological potential indicate testing this facility was necessary? | G88: =HLOOKUP($E$5,'Health & Safety'!$A$23:$G$33,10,FALSE) -> 0
B89: c. If yes, did the highest test in this building exceed 4pCi/L? | G89: =HLOOKUP($E$5,'Health & Safety'!$A$23:$G$33,11,FALSE) -> 0
B90: d. If yes, describe mitigation activities:
C91: =VLOOKUP($E$5,'Health & Safety'!$A$35:$G$40,2,FALSE) -> Mitigation activities described here.
A93: 17. Integrated Pest Management Program:
B94: a. Does this school have an integrated pest management program? | G94: =HLOOKUP($E$5,'Integrated Pest Management'!$B$6:$G$11,3,FALSE) -> 0
B95: b. Does this school have a person designated to oversee the pest management program? | G95: =HLOOKUP($E$5,'Integrated Pest Management'!$B$6:$G$11,4,FALSE) -> 0
B96: c. Has this school established a list of persons to notify at least 48 hours prior to the application of pesticides? | G96: =HLOOKUP($E$5,'Integrated Pest Management'!$B$6:$G$11,5,FALSE) -> 0
B97: d. Have pesticide application summary reports been provided to all parents and staff pursuant to CR 155.24? | G97: =HLOOKUP($E$5,'Integrated Pest Management'!$B$6:$G$11,6,FALSE) -> 0
A98: 18. Status of measures taken to assure acceptable indoor air quality:
B99: a. Does this school utilize the EPA Indoor Air Quality Tools for Schools Action Kit? | G99: =HLOOKUP($E$5,'Indoor Environment Quality'!$B$6:$G$29,3,FALSE) -> 0
B100: b. Does this school have a procedure in place for reporting indoor air quality concerns? | G100: =HLOOKUP($E$5,'Indoor Environment Quality'!$B$6:$G$29,4,FALSE) -> 0
B101: c. Is ventilation with outdoor air available in all occupied spaces? | G101: =HLOOKUP($E$5,'Indoor Environment Quality'!$B$6:$G$29,5,FALSE) -> 0
C102: 1. Is all ventilation and exhaust equipment operational? | G102: =HLOOKUP($E$5,'Indoor Environment Quality'!$B$6:$G$29,6,FALSE) -> 0
C103: 2. Are all outdoor air intakes unobstructed and clear of foreign objects? | G103: =HLOOKUP($E$5,'Indoor Environment Quality'!$B$6:$G$29,7,FALSE) -> 0
C104: 3. Are all outside air damper controls in place and operational? | G104: =HLOOKUP($E$5,'Indoor Environment Quality'!$B$6:$G$29,8,FALSE) -> 0
C105: 4. Have facilities operations been reviewed with respect to impact on outside air intakes (i.e., vehicle emissions, waste storage, mowing, etc.)? | G105: =HLOOKUP($E$5,'Indoor Environment Quality'!$B$6:$G$29,9,FALSE) -> 0
B106: d. Are there any unresolved complaints regarding indoor air at this facility? | G106: =HLOOKUP($E$5,'Indoor Environment Quality'!$B$6:$G$29,10,FALSE) -> 0
B107: If yes, describe: | C107: =VLOOKUP($E$5,'Indoor Environment Quality'!$A$17:$G$22,2,FALSE) -> IEQ description here.
B109: e. Maintenance: Heating, ventilation, and air conditioning equipment are cleaned and maintained in accordance with manufacturer’s instructions (i.e., filter changes, coils cleaned, etc.) | G109: =HLOOKUP($E$5,'Indoor Environment Quality'!$B$6:$G$29,18,FALSE) -> 0
B110: f. Has the interior of ductwork (air passageways) been inspected for cleanliness? | G110: =HLOOKUP($E$5,'Indoor Environment Quality'!$B$6:$G$29,19,FALSE) -> 0
B111: g. Have exterior ductwork and rooftop air handling units been inspected for leaks? | G111: =HLOOKUP($E$5,'Indoor Environment Quality'!$B$6:$G$29,20,FALSE) -> 0
B112: h. Operations and maintenance program:
C113: 1. Does the District have a policy encouraging the use of environmentally friendly products? | G113: =HLOOKUP($E$5,'Indoor Environment Quality'!$B$6:$G$29,21,FALSE) -> 0
C114: 2. Products entering a school building are reviewed with the intent of reducing or eliminating hazardous chemicals, including volatile organic compounds (VOCs), semi-volatile organic compounds, etc. (cleaning supplies, repair and maintenance supplies, materials, etc.). | G114: =HLOOKUP($E$5,'Indoor Environment Quality'!$B$6:$G$29,22,FALSE) -> 0
C115: 3. Review performed to ensure hazardous chemicals used as part of instructional program are used and stored properly. | G115: =HLOOKUP($E$5,'Indoor Environment Quality'!$B$6:$G$29,23,FALSE) -> 0
B116: i. Buildings are inspected for roof leaks, growth of mold, evidence of rodent infiltration, and other potential problems to acceptable IAQ. | G116: =HLOOKUP($E$5,'Indoor Environment Quality'!$B$6:$G$29,24,FALSE) -> 0
B117: j. Is this facility seeking to comply with a whole building sustainable guideline, such as the U.S. Green Building Council's LEED® for Existing Buildings? | G117: =HLOOKUP($E$5,'Indoor Environment Quality'!$B$6:$G$36,30,FALSE) -> 0

Sheet 5 Year Cap Plan, Part 1
A1: This tab is used to print parts of the 5-Year Capital Facilities Plan. You do not need to enter any data here. You can preview or print this tab, however, if you want to see how this material will look in the final Capital Plan Report.
A9: ='General Info'!B8 -> Sample Town CSD
A10: ='General Info'!B9 -> Valley View BOCES
A20: Five-Year Capital Facilities Plan
A40: Submitted/Revised
A41: ='General Info'!B7 -> 2005-02-01
A44: Table of Contents
A45: Item | H45: Page
A47: Executive Summary | H47: 1
A49: Building Inventories
B50: ='Facilities Inventory'!$B$4 -> Elementary Elementary School | H50: =H47+1 -> 2
B51: =IF('Facilities Inventory'!$C$4<>"",'Facilities Inventory'!$C$4,"") -> Good Grades Middle School | H51: =IF(B51<>"",H50+1,"") -> 3
B52: =IF('Facilities Inventory'!$D$4<>"",'Facilities Inventory'!$D$4,"") -> Example School 3 | H52: =IF(B52<>"",H51+1,"") -> 4
B53: =IF('Facilities Inventory'!$E$4<>"",'Facilities Inventory'!$E$4,"") -> Example School 4 | H53: =IF(B53<>"",H52+1,"") -> 5
B54: =IF('Facilities Inventory'!$F$4<>"",'Facilities Inventory'!$F$4,"") -> Example School 5 | H54: =IF(B54<>"",H53+1,"") -> 6
B55: =IF('Facilities Inventory'!$G$4<>"",'Facilities Inventory'!$G$4,"") -> Example School 6 | H55: =IF(B55<>"",H54+1,"") -> 7
A57: District Analysis and Prioritization | H57: =IF(H55="",IF(H54="",IF(H53="",IF(H52="",IF(H51="",H50+1,H51+1),H52+1),H53+1),H54+1),H55+1) -> 8
A59: Estimated Expenses
B60: ='Facilities Inventory'!$B$4 -> Elementary Elementary School | H60: =H57+1 -> 9
B61: =IF('Facilities Inventory'!$C$4<>"",'Facilities Inventory'!$C$4,"") -> Good Grades Middle School | H61: =IF(B61<>"",H60+1,"") -> 10
B62: =IF('Facilities Inventory'!$D$4<>"",'Facilities Inventory'!$D$4,"") -> Example School 3 | H62: =IF(B62<>"",H61+1,"") -> 11
B63: =IF('Facilities Inventory'!$E$4<>"",'Facilities Inventory'!$E$4,"") -> Example School 4 | H63: =IF(B63<>"",H62+1,"") -> 12
B64: =IF('Facilities Inventory'!$F$4<>"",'Facilities Inventory'!$F$4,"") -> Example School 5 | H64: =IF(B64<>"",H63+1,"") -> 13
B65: =IF('Facilities Inventory'!$G$4<>"",'Facilities Inventory'!$G$4,"") -> Example School 6 | H65: =IF(B65<>"",H64+1,"") -> 14
A68: Executive Summary
A70: Following are the people who prepared this plan and the resources used:
A71: ='General Info'!$A$17 -> People and resources here.
A72: Following is a narrative of the general conditions of each facility:
A73: Facility Name | C73: Narrative
A74: ='Facilities Inventory'!B4 -> Elementary Elementary School | C74: ='CMP Overview'!B8 -> Insert assessment here…
A77: ='Facilities Inventory'!C4 -> Good Grades Middle School | C77: ='CMP Overview'!B9 -> Insert assessment here…
A80: ='Facilities Inventory'!D4 -> Example School 3 | C80: ='CMP Overview'!B10 -> Insert assessment here…
A83: ='Facilities Inventory'!E4 -> Example School 4 | C83: ='CMP Overview'!B11 -> Insert assessment here…
A86: ='Facilities Inventory'!F4 -> Example School 5 | C86: ='CMP Overview'!B12 -> Insert assessment here…
A89: ='Facilities Inventory'!G4 -> Example School 6 | C89: ='CMP Overview'!B13 -> Insert assessment here…
A93: Building Inventory Form
A95: Building Name: | C95: Example School 6
A97: Bed Codes Number: | C97: =HLOOKUP(C95,'Facilities Inventory'!B4:G5,2,FALSE) -> 0
A99: Address: | B99: =CONCATENATE(HLOOKUP($C$95,'Facilities Inventory'!$A$4:$G$16,3,FALSE)&" -- "& HLOOKUP($C$95,'Facilities Inventory'!$A$4:$G$16,4,FALSE)&", "&HLOOKUP($C$95,'Facilities Inventory'!$A$4:$G$16,5,FALSE)&" "&HLOOKUP($C$95,'Facilities Inventory'!$A$4:$G$16,6,FALSE)) -> -- ,
A101: Use: | C101: =HLOOKUP($C$95,'Facilities Inventory'!$A$4:$G$60,13,FALSE) -> 0 | E101: Current enrollment: | H101: =HLOOKUP($C$95,'Facilities Inventory'!$A$4:$G$60,11,FALSE) -> 0
A103: Total square footage: | C103: =HLOOKUP($C$95,'Facilities Inventory'!$A$4:$G$60,8,FALSE) -> 0 | E103: Rated Capacity: | H103: =HLOOKUP($C$95,'Facilities Inventory'!$A$4:$G$60,12,FALSE) -> 0
A106: Ownership: | D106: =HLOOKUP($C$95,'Facilities Inventory'!$A$4:$G$60,14,FALSE) -> 0
A109: Building Condition Survey Rating: | D109: =HLOOKUP($C$95,'Facilities Inventory'!$A$4:$G$60,23,FALSE) -> 0
A112: Building Age:
B114: Construction Year | D114: Square Footage
A115: Original | B115: =HLOOKUP($C$95,'Facilities Inventory'!$B$4:$G$53,7,FALSE) -> 0 | D115: =HLOOKUP($C$95,'Facilities Inventory'!$B$4:$G$53,30,FALSE) -> 0
A116: Addition #1 | B116: =HLOOKUP($C$95,'Facilities Inventory'!$B$4:$G$53,31,FALSE) -> 0 | D116: =HLOOKUP($C$95,'Facilities Inventory'!$B$4:$G$53,32,FALSE) -> 0
A117: Addition #2 | B117: =HLOOKUP($C$95,'Facilities Inventory'!$B$4:$G$53,33,FALSE) -> 0 | D117: =HLOOKUP($C$95,'Facilities Inventory'!$B$4:$G$53,34,FALSE) -> 0
A118: Addition #3 | B118: =HLOOKUP($C$95,'Facilities Inventory'!$B$4:$G$53,35,FALSE) -> 0 | D118: =HLOOKUP($C$95,'Facilities Inventory'!$B$4:$G$53,36,FALSE) -> 0
A119: Addition #4 | B119: =HLOOKUP($C$95,'Facilities Inventory'!$B$4:$G$53,37,FALSE) -> 0 | D119: =HLOOKUP($C$95,'Facilities Inventory'!$B$4:$G$53,38,FALSE) -> 0
A120: Addition #5 | B120: =HLOOKUP($C$95,'Facilities Inventory'!$B$4:$G$53,39,FALSE) -> 0 | D120: =HLOOKUP($C$95,'Facilities Inventory'!$B$4:$G$53,40,FALSE) -> 0
A121: Addition #6 | B121: =HLOOKUP($C$95,'Facilities Inventory'!$B$4:$G$53,41,FALSE) -> 0 | D121: =HLOOKUP($C$95,'Facilities Inventory'!$B$4:$G$53,42,FALSE) -> 0
A122: Addition #7 | B122: =HLOOKUP($C$95,'Facilities Inventory'!$B$4:$G$53,43,FALSE) -> 0 | D122: =HLOOKUP($C$95,'Facilities Inventory'!$B$4:$G$53,44,FALSE) -> 0
A123: Addition #8 | B123: =HLOOKUP($C$95,'Facilities Inventory'!$B$4:$G$53,45,FALSE) -> 0 | D123: =HLOOKUP($C$95,'Facilities Inventory'!$B$4:$G$53,46,FALSE) -> 0
A124: Addition #9 | B124: =HLOOKUP($C$95,'Facilities Inventory'!$B$4:$G$53,47,FALSE) -> 0 | D124: =HLOOKUP($C$95,'Facilities Inventory'!$B$4:$G$53,48,FALSE) -> 0
A125: Addition #10 | B125: =HLOOKUP($C$95,'Facilities Inventory'!$B$4:$G$53,49,FALSE) -> 0 | D125: =HLOOKUP($C$95,'Facilities Inventory'!$B$4:$G$53,50,FALSE) -> 0
A128: Heating System Energy Source: | D128: =HLOOKUP($C$95,'Facilities Inventory'!$A$4:$G$60,15,FALSE) -> 0
A130: Energy Consumption: | C130: =HLOOKUP($C$95,Energy!$A$6:$M$21,13,FALSE) -> 0 | D130: kWh (electricity) | F130: =HLOOKUP($C$95,Energy!$A$6:$M$21,14,FALSE) -> 0 | G130: therms (natural gas)
A131: (per year) | C131: =HLOOKUP($C$95,Energy!$A$6:$M$21,15,FALSE) -> 0 | D131: gallons (fuel oil) | F131: =HLOOKUP($C$95,Energy!$A$6:$M$21,16,FALSE) -> 0 | G131: units (other)
A133: Probable Useful Life of Building: | C133: =HLOOKUP($C$95,'Facilities Inventory'!$A$4:$G$60,27,FALSE) -> 0 | D133: =" years" -> years | E133: Estimated Replacement Value: | H133: =HLOOKUP($C$95,'Facilities Inventory'!$A$4:$G$60,28,FALSE) -> 0
A135: District-Wide Analysis and Prioritization
A136: District: | B136: ='General Info'!B8 -> Sample Town CSD
A137: Year 1 | B137: SED Number | C137: Priority | E137: Facility Name | H137: Costs
B138: 121212121234124 | C138: 2 | E138: Good Grades Middle School | H138: 15600
G140: Year Total | H140: =SUM(H137:H139) -> 15600
A141: Year 2 | B141: SED Number | C141: Priority | E141: Facility Name | H141: Costs
B142: 3242309482 | C142: 2 | E142: Elementary Elementary School | H142: 20000
B143: 34059384535 | C143: 3 | E143: Elementary Elementary School | H143: 10000
B144: 43305439053 | C144: 1 | E144: Elementary Elementary School | H144: 30000
G146: Year Total | H146: =SUM(H141:H145) -> 60000
A147: Year 3 | B147: SED Number | C147: Priority | E147: Facility Name | H147: Costs
G149: Year Total | H149: =SUM(H147:H148) -> 0
A150: Year 4 | B150: SED Number | C150: Priority | E150: Facility Name | H150: Costs
B151: 10294958771729 | C151: 2 | E151: Good Grades Middle School | H151: 60000
G153: Year Total | H153: =SUM(H150:H152) -> 60000
A154: Year 5 | B154: SED Number | C154: Priority | E154: Facility Name | H154: Costs
B155: 121212121234124 | C155: 3 | E155: Elementary Elementary School | H155: 20000
G157: Year Total | H157: =SUM(H154:H156) -> 20000
G158: District Total | H158: =H157+H153+H149+H146+H140 -> 155600

Sheet 5 Year Cap Plan, Part 2
A1: Instructions: If you want to view or print capital data for a single school, click the dropdown button to fill in data for one school. You do not need to enter any data on this form because it is brought in from other tabs.
A2: Facility Estimated Expenses
A4: District: | C4: ='General Info'!B8 -> Sample Town CSD
A5: Facility Name: | C5: Example School 6 | D5: << select to change school
E6: New Construction | F6: Addition | G6: Alterations | H6: Major System | I6: Major Repair | J6: Energy | K6: Bond | L6: Capital
A7: Year 1 | B7: Priority | C7: SED # | D7: Item Description | M7: Cost
K9: Year Total | M9: =SUM(M7:M8) -> 0
A10: Year 2 | B10: Priority | C10: SED # | D10: Item Description | M10: Cost
K12: Year Total | M12: =SUM(M10:M11) -> 0
A13: Year 3 | B13: Priority | C13: SED # | D13: Item Description | M13: Cost
K15: Year Total | M15: =SUM(M13:M14) -> 0
A16: Year 4 | B16: Priority | C16: SED # | D16: Item Description | M16: Cost
K18: Year Total | M18: =SUM(M16:M17) -> 0
A19: Year 5 | B19: Priority | C19: SED # | D19: Item Description | M19: Cost
K21: Year Total | M21: =SUM(M19:M20) -> 0
K22: Facility Total | M22: =M9+M12+M15+M18+M21 -> 0

Sheet App A Equip Inventory
A1: You can use the following Equipment Inventory to help start your PM system. This page helps you keep track of all your equipment and matches the equipment on the following PM Log page. You can expand the table as needed by adding rows. BE SURE TO COPY THE TAB AS NEEDED FOR EACH SCHOOL.
A2: Energy $mart Schools
A3: Comprehensive Maintenance Plan (CMP)
A4: =CONCATENATE("District: ",'General Info'!B8, " Prepared by: ",'General Info'!D7, " Date: ",TEXT('General Info'!B7,"mm/dd/yyyy")) -> District: Sample Town CSD Prepared by: John Doe Date: 02/01/2005
A5: Equipment Inventory
A6: School: ________________________________ | D6: Date Updated: ____________________________
A8: Heating Systems | B8: P.M. Ref # | C8: Manufacturer | D8: Model # | E8: Serial # | F8: Size | G8: Fuel Type | H8: Efficiency Rating | I8: Number in Building | J8: Installation Date | K8: Expected Service Life (yrs) | L8: Location | M8: Suggested Maint Interval (# per year) | N8: Special Tools Required | O8: Annual Maintenance Cost ($) | P8: Notes
A9: Boilers | B9: HS 2004-01 | C9: IBR | D9: K500-B | E9: 123-456-78 | F9: 500,000 Btu | G9: Gas | H9: 0.75 | I9: 2 | J9: 1977, 1992 | K9: 35 | L9: Boiler room next to loading dock | M9: 4 | N9: No. 14 3-headed left-handed propane-powered pneumatic sprocket | O9: 1200
A10: Furnaces
A11: Condenser pumps
A12: Deaerator tank
A13: Steam traps
A14: Steam valves
A15: Fuel tanks & distribution
A16: Heat exchangers
A17: Terminal/package units
A18: Fin tubes/radiators
A19: Dampers/draft control
A20: Ductwork
A21: Stacks
A22: Insulation
A23: Piping
A24: Valves
A25: Control sensors
A27: Air Handling Systems | B27: P.M. Ref # | C27: Manufacturer | D27: Model # | E27: Serial # | F27: Size | G27: Fuel Type | H27: Efficiency Rating | I27: Number in Building | J27: Installation Date | K27: Expected Service Life (yrs) | L27: Location | M27: Suggested Maint Interval (# per year) | N27: Special Tools Required | O27: Annual Maintenance Cost ($) | P27: Notes
A28: Air handling units
A29: Unit ventilators
A30: Fans
A31: Fire dampers
A32: Filters
A33: Humidifiers
A35: Cooling Systems | B35: P.M. Ref # | C35: Manufacturer | D35: Model # | E35: Serial # | F35: Size | G35: Fuel Type | H35: Efficiency Rating | I35: Number in Building | J35: Installation Date | K35: Expected Service Life (yrs) | L35: Location | M35: Suggested Maint Interval (# per year) | N35: Special Tools Required | O35: Annual Maintenance Cost ($) | P35: Notes
A36: Condensing units
A37: Air compressors
A38: Heat exchangers
A39: Packaged A/C units
A40: Chillers
A41: CHW Pumps
A42: Heat pumps
A44: Fire Protection/ Suppression Systems | B44: P.M. Ref # | C44: Manufacturer | D44: Model # | E44: Serial # | F44: Size | G44: Fuel Type | H44: Efficiency Rating | I44: Number in Building | J44: Installation Date | K44: Expected Service Life (yrs) | L44: Location | M44: Suggested Maint Interval (# per year) | N44: Special Tools Required | O44: Annual Maintenance Cost ($) | P44: Notes
A45: Sprinkler piping
A46: Backflow preventers
A47: Sprinkler heads
A48: Fire extinguishers
A49: Fire hose system
A50: Standpipe connection
A51: Fire pumps
A52: Grease hood extinguisher
A53: Alarms and detectors
A55: Mechanical Controls | B55: P.M. Ref # | C55: Manufacturer | D55: Model # | E55: Serial # | F55: Size | G55: Fuel Type | H55: Efficiency Rating | I55: Number in Building | J55: Installation Date | K55: Expected Service Life (yrs) | L55: Location | M55: Suggested Maint Interval (# per year) | N55: Special Tools Required | O55: Annual Maintenance Cost ($) | P55: Notes
A56: Compressors
A57: Pneumatic valves/levers
A58: Pneumatic tubing
A59: Electronic controls
A61: Plumbing Systems | B61: P.M. Ref # | C61: Manufacturer | D61: Model # | E61: Serial # | F61: Size | G61: Fuel Type | H61: Efficiency Rating | I61: Number in Building | J61: Installation Date | K61: Expected Service Life (yrs) | L61: Location | M61: Suggested Maint Interval (# per year) | N61: Special Tools Required | O61: Annual Maintenance Cost ($) | P61: Notes
A62: Cold water piping
A63: Water heaters
A64: Hot water piping
A65: Circulation pumps
A66: Sump pumps
A67: Valves and traps
A68: Septic tanks
A70: Lighting Systems | B70: P.M. Ref # | C70: Manufacturer | D70: Model # | E70: Serial # | F70: Size | G70: Fuel Type | H70: Efficiency Rating | I70: Number in Building | J70: Installation Date | K70: Expected Service Life (yrs) | L70: Location | M70: Suggested Maint Interval (# per year) | N70: Special Tools Required | O70: Annual Maintenance Cost ($) | P70: Notes
A71: Fluorescent fixtures
A72: Incandescent fixtures
A73: HID fixtures
A74: Lighting panels
A75: Emergency lighting
A76: Exterior lighting
A77: Occupancy controls
A78: Daylight controls
A79: Other controls
A81: Signal Systems | B81: P.M. Ref # | C81: Manufacturer | D81: Model # | E81: Serial # | F81: Size | G81: Fuel Type | H81: Efficiency Rating | I81: Number in Building | J81: Installation Date | K81: Expected Service Life (yrs) | L81: Location | M81: Suggested Maint Interval (# per year) | N81: Special Tools Required | O81: Annual Maintenance Cost ($) | P81: Notes
A82: Computer data
A83: Public address
A84: Television
A85: Telephone
A86: Clock system
A87: Fire alarms
A88: Security alarm/devices
A90: Foundation and Substructure | B90: P.M. Ref # | C90: Manufacturer | D90: Model # | E90: Serial # | F90: Size | G90: Fuel Type | H90: Efficiency Rating | I90: Number in Building | J90: Installation Date | K90: Expected Service Life (yrs) | L90: Location | M90: Suggested Maint Interval (# per year) | N90: Special Tools Required | O90: Annual Maintenance Cost ($) | P90: Notes
A91: Footings
A92: Foundation walls
A93: Slab/beams on grade
A94: Piling/Posts How?
A95: Waterproofing How?
A96: Insulation
A97: Underdrains How?
A99: Superstructure | B99: P.M. Ref # | C99: Manufacturer | D99: Model # | E99: Serial # | F99: Size | G99: Fuel Type | H99: Efficiency Rating | I99: Number in Building | J99: Installation Date | K99: Expected Service Life (yrs) | L99: Location | M99: Suggested Maint Interval (# per year) | N99: Special Tools Required | O99: Annual Maintenance Cost ($) | P99: Notes
A100: Columns
A101: Beams
A102: Floor structure
A103: Roof structure
A104: Monolithic bearing walls
A105: Stairs and railings
A106: Structural bracing
A107: Welds/connectors
A110: Roof Systems | B110: P.M. Ref # | C110: Manufacturer | D110: Model # | E110: Serial # | F110: Size | G110: Fuel Type | H110: Efficiency Rating | I110: Number in Building | J110: Installation Date | K110: Expected Service Life (yrs) | L110: Location | M110: Suggested Maint Interval (# per year) | N110: Special Tools Required | O110: Annual Maintenance Cost ($) | P110: Notes
A111: Roofing
A112: Insulation
A113: Paving and ballast Paving? On a roof?
A114: Curbs/supports
A115: Expansion/seismic joints
A116: Drains, gutters, etc.
A117: Drywells
A118: Flashing and trim
A119: Fasteners
A120: Snow stops
A121: Roof openings
A122: Parapet caps
A124: Exterior Wall Systems | B124: P.M. Ref # | C124: Manufacturer | D124: Model # | E124: Serial # | F124: Size | G124: Fuel Type | H124: Efficiency Rating | I124: Number in Building | J124: Installation Date | K124: Expected Service Life (yrs) | L124: Location | M124: Suggested Maint Interval (# per year) | N124: Special Tools Required | O124: Annual Maintenance Cost ($) | P124: Notes
A125: Facade integrity
A126: Cladding/sheathing
A127: Doors
A128: Window systems
A129: Balcony walls/railings
A130: Louvers and screens
A131: Expansion/seismic joints
A132: Insulation
A133: Protective coating
A134: Sealants
A136: Interior Construction | B136: P.M. Ref # | C136: Manufacturer | D136: Model # | E136: Serial # | F136: Size | G136: Fuel Type | H136: Efficiency Rating | I136: Number in Building | J136: Installation Date | K136: Expected Service Life (yrs) | L136: Location | M136: Suggested Maint Interval (# per year) | N136: Special Tools Required | O136: Annual Maintenance Cost ($) | P136: Notes
A137: Fixed partitions
A138: Demountable partitions
A139: Retractable partitions
A140: Doors
A141: Carpet
A142: Resilient tile/sheet
A143: Ceramic/clay tile
A144: Terrazzo
A145: Paint
A146: Vinyl/fabric wall cover
A147: Ceiling system
A149: Power Generation | B149: P.M. Ref # | C149: Manufacturer | D149: Model # | E149: Serial # | F149: Size | G149: Fuel Type | H149: Efficiency Rating | I149: Number in Building | J149: Installation Date | K149: Expected Service Life (yrs) | L149: Location | M149: Suggested Maint Interval (# per year) | N149: Special Tools Required | O149: Annual Maintenance Cost ($) | P149: Notes
A150: Generators
A151: Transfer switches
A152: Transformers
A153: Service wiring
A154: Substation
A155: Switchgear
A156: Overcurrent protection
A158: Power Distribution Systems | B158: P.M. Ref # | C158: Manufacturer | D158: Model # | E158: Serial # | F158: Size | G158: Fuel Type | H158: Efficiency Rating | I158: Number in Building | J158: Installation Date | K158: Expected Service Life (yrs) | L158: Location | M158: Suggested Maint Interval (# per year) | N158: Special Tools Required | O158: Annual Maintenance Cost ($) | P158: Notes
A159: Main distribution panel
A160: Wiring, conduits, & distribution panels
A161: Electrical receptacles
A162: Circuit breakers
A163: Electric baseboard heaters
A164: Heat trace
A166: Landscaping Systems | B166: P.M. Ref # | C166: Manufacturer | D166: Model # | E166: Serial # | F166: Size | G166: Fuel Type | H166: Efficiency Rating | I166: Number in Building | J166: Installation Date | K166: Expected Service Life (yrs) | L166: Location | M166: Suggested Maint Interval (# per year) | N166: Special Tools Required | O166: Annual Maintenance Cost ($) | P166: Notes
A167: Irrigation
A168: Tree/shrub/flower bed plantings
A169: Turf/lawn
A170: Walks/plazas
A172: Playfields and Playground Systems | B172: P.M. Ref # | C172: Manufacturer | D172: Model # | E172: Serial # | F172: Size | G172: Fuel Type | H172: Efficiency Rating | I172: Number in Building | J172: Installation Date | K172: Expected Service Life (yrs) | L172: Location | M172: Suggested Maint Interval (# per year) | N172: Special Tools Required | O172: Annual Maintenance Cost ($) | P172: Notes
A173: Athletic fields
A174: Hard surface courts
A175: Swings
A176: Safety mats
A177: Gravel and containment
A178: Markings/painting
A180: Vehicular Systems | B180: P.M. Ref # | C180: Manufacturer | D180: Model # | E180: Serial # | F180: Size | G180: Fuel Type | H180: Efficiency Rating | I180: Number in Building | J180: Installation Date | K180: Expected Service Life (yrs) | L180: Location | M180: Suggested Maint Interval (# per year) | N180: Special Tools Required | O180: Annual Maintenance Cost ($) | P180: Notes
A181: Parking lots
A182: Roads/drives
A183: Curbs
A184: Fire lanes
A186: Site Utilities | B186: P.M. Ref # | C186: Manufacturer | D186: Model # | E186: Serial # | F186: Size | G186: Fuel Type | H186: Efficiency Rating | I186: Number in Building | J186: Installation Date | K186: Expected Service Life (yrs) | L186: Location | M186: Suggested Maint Interval (# per year) | N186: Special Tools Required | O186: Annual Maintenance Cost ($) | P186: Notes
A187: Fuel tanks
A188: Fuel distribution piping
A189: Storm drainage
A190: Fire hydrant systems
A192: Specialties | B192: P.M. Ref # | C192: Manufacturer | D192: Model # | E192: Serial # | F192: Size | G192: Fuel Type | H192: Efficiency Rating | I192: Number in Building | J192: Installation Date | K192: Expected Service Life (yrs) | L192: Location | M192: Suggested Maint Interval (# per year) | N192: Special Tools Required | O192: Annual Maintenance Cost ($) | P192: Notes
A193: Toilet partitions
A194: Display boards
A195: Projection screens
A196: Display cases
A197: Lockers
A198: Elevators
A199: Waste handling equipment
A200: Food service equipment
A201: Woodworking shop equipment
A202: Auto/engine shop equipment
A203: Vaults
A204: Swimming pools

Sheet App B PM Checklist & Log
A1: Use the following checklist and log to help keep track of your PM activities and to demonstrate the proper maintenance you perform in each building in your District. This will also help justify your expenses for PM and your capital expenses for equipment that has had proper maintenance over the years. Check the appropriate box to indicate the month that each PM action was accomplished. The table will expand as needed. BE SURE TO COPY THE TAB AS NEEDED FOR EACH SCHOOL.
A2: Energy $mart Schools
A3: Comprehensive Maintenance Plan (CMP)
A4: =CONCATENATE("District: ",'General Info'!B8, " Prepared by: ",'General Info'!D7, " Date: ",TEXT('General Info'!B7,"mm/dd/yyyy")) -> District: Sample Town CSD Prepared by: John Doe Date: 02/01/2005
A5: PM Checklist and Log
A6: School: ____________________________________ | C6: Year: ________________ | E6: Implementor Key: M = Maintenance Mechanic C = Custodian/on-site staff G = Grounds crew CC = Contracted to others
A8: Heating Systems | B8: P.M. Ref # | C8: Implementor | D8: Frequency/Year | E8: Jan | F8: Feb | G8: Mar | H8: Apr | I8: May | J8: Jun | K8: Jul | L8: Aug | M8: Sep | N8: Oct | O8: Nov | P8: Dec
A9: Boilers | B9: HS 2004-01 | C9: M | D9: 4 | F9: x | L9: x | N9: x | P9: x
A10: Boiler water treatment | D10: 10
A11: Furnaces | D11: 4
A12: Condenser pumps | D12: 4
A13: Deaerator tank | D13: 2
A14: Steam traps | D14: 4
A15: Steam valves | D15: 1-4
A16: Fuel tanks & distribution | D16: 1
A17: Heat exchangers | D17: 2
A18: Terminal/package units | D18: 4
A19: Fin tubes/radiators | D19: 4
A20: Dampers/draft control | D20: 4
A21: Ductwork | D21: 2
A22: Stacks | D22: 4
A23: Insulation | D23: 2
A24: Piping | D24: 4
A25: Valves | D25: 1
A26: Control sensors | D26: 2
A28: Air Handling Systems | B28: P.M. Ref # | C28: Implementor | D28: Frequency/Year | E28: Jan | F28: Feb | G28: Mar | H28: Apr | I28: May | J28: Jun | K28: Jul | L28: Aug | M28: Sep | N28: Oct | O28: Nov | P28: Dec
A29: Air handling units | D29: 4
A30: Unit ventilators | D30: 4
A31: Fans | D31: 2
A32: Fire dampers | D32: 1
A33: Filters | D33: 2-4
A34: Humidifiers | D34: 2
A36: Cooling Systems | B36: P.M. Ref # | C36: Implementor | D36: Frequency/Year | E36: Jan | F36: Feb | G36: Mar | H36: Apr | I36: May | J36: Jun | K36: Jul | L36: Aug | M36: Sep | N36: Oct | O36: Nov | P36: Dec
A37: Condensing units | D37: 4
A38: Air compressors | D38: 12
A39: Heat exchangers | D39: 2
A40: Packaged A/C units | D40: 4
A41: Chillers: oil levels and operation | D41: 52
A42: Chillers: other | D42: 12
A43: CHW Pumps | D43: 2-4
A44: Heat pumps | D44: 4
A46: Fire Protection/Suppression Systems
A47: Sprinkler piping
A48: Backflow preventers
A49: Sprinkler heads
A50: Fire extinguishers
A51: Fire hose system
A52: Standpipe connection
A53: Fire pumps
A54: Grease hood extinguisher
A55: Alarms and detectors
A57: Mechanical Controls
A58: Compressors
A59: Pneumatic valves/levers
A60: Pneumatic tubing
A61: Electronic controls
A63: Plumbing Systems
A64: Cold water piping
A65: Water heaters
A66: Hot water piping
A67: Circulation pumps
A68: Sump pumps
A69: Valves and traps
A70: Septic tanks
A72: Lighting Systems
A73: Fluorescent fixtures
A74: Incandescent fixtures
A75: HID fixtures
A76: Lighting panels
A77: Emergency lighting
A78: Exterior lighting
A79: Occupancy controls
A80: Daylight controls
A81: Other controls
A83: Signal Systems
A84: Computer data
A85: Public address
A86: Television
A87: Telephone
A88: Clock system
A89: Fire alarms
A90: Security alarm/devices
A92: Foundation and Substructure
A93: Footings How?
A94: Foundation walls
A95: Slab/beams on grade
A96: Piling/Posts How?
A97: Waterproofing How?
A98: Insulation
A99: Underdrains How?
A101: Superstructure
A102: Columns
A103: Beams
A104: Floor structure
A105: Roof structure
A106: Monolithic bearing walls
A107: Stairs and railings
A108: Structural bracing
A109: Welds/connectors
A112: Roof Systems
A113: Roofing
A114: Insulation
A115: Paving and ballast Paving? On a roof?
A116: Curbs/supports
A117: Expansion/seismic joints
A118: Drains, gutters, etc.
A119: Drywells
A120: Flashing and trim
A121: Fasteners
A122: Snow stops
A123: Roof openings
A124: Parapet caps
A126: Exterior Wall Systems
A127: Facade integrity
A128: Cladding/sheathing
A129: Doors
A130: Window systems
A131: Balcony walls/railings
A132: Louvers and screens
A133: Expansion/seismic joints
A134: Insulation
A135: Protective coating
A136: Sealants
A138: Interior Construction
A139: Fixed partitions
A140: Demountable partitions
A141: Retractable partitions
A142: Doors
A143: Carpet
A144: Resilient tile/sheet
A145: Ceramic/clay tile
A146: Terrazzo
A147: Paint
A148: Vinyl/fabric wall cover
A149: Ceiling system
A151: Power Generation
A152: Generators
A153: Transfer switches
A154: Transformers
A155: Service wiring
A156: Substation
A157: Switchgear
A158: Overcurrent protection
A160: Power Distribution Systems
A161: Main distribution panel
A162: Wiring, conduits, & distribution panels
A163: Electrical receptacles
A164: Circuit breakers
A165: Electric baseboard heaters
A166: Heat trace
A168: Landscaping Systems
A169: Irrigation
A170: Tree/shrub/flower bed plantings
A171: Turf/lawn
A172: Walks/plazas
A174: Playfields and Playground Systems
A175: Athletic fields
A176: Hard surface courts
A177: Swings
A178: Safety mats
A179: Gravel and containment
A180: Markings/painting
A182: Vehicular Systems
A183: Parking lots
A184: Roads/drives
A185: Curbs
A186: Fire lanes
A188: Site Utilities
A189: Fuel tanks
A190: Fuel distribution piping
A191: Storm drainage
A192: Fire hydrant systems
A194: Specialties
A195: Toilet partitions
A196: Display boards
A197: Projection screens
A198: Display cases
A199: Lockers
A200: Elevators
A201: Waste handling equipment
A202: Food service equipment
A203: Woodworking shop equipment
A204: Auto/engine shop equipment
A205: Vaults
A206: Swimming pools
A207: Raised computer flooring

Sheet App C Work Order
A1: This template can be used to help you customize a different PM work order for each PM activity listed on the PM Checklist and Log. Under the "Description of Work to be Performed," you can list the PM steps necessary for the specific PM interval for that specific equipment. You can save a copy of this form and edit as needed for each piece of equipment for which you perform PM services.
A2: Preventive Maintenance Work Order Sheet
A4: Equipment to be Worked on:
A6: School District: | I6: Date Issued:
A8: School: | I8: Date Completed:
A10: Performed By: | I10: PM Code #:
A12: Type of PM to be Performed: | E12: Monthly | G12: Quarterly | I12: Semi-Annual | K12: Annual | M12: Other
A14: Time to Allow for Perform PM Work: | I14: Hour (s)
A16: Tools Required:
A20: Description of Work to be Performed: | M20: Remarks:
A22: 1.
A25: 2.
A28: 3.
A31: 4.
A34: 5.
A37: 6.
A40: 7.
A43: 8.
A46: 9.
A49: 10.
A52: 11.
A55: 12.
A59: Additional Follow-up Activities Needed:

Sheet App D Bid Spec
A1: This sample language can be used as part of a bid specification to help guide contractors in providing adequate documentation and training that will lead to better O&M in your schools.
A2: O&M Specification Language
A4: A. | B4: Operation and Maintenance Instructions: Arrange for each Installer of equipment that requires regular maintenance to meet with the Owner's personnel to provide instruction in proper operation and maintenance of the installed equipment. Provide instruction by manufacturer's representatives if installers are not experienced in operation and maintenance procedures. Include a detailed review of the following items:
A6: 1 | B6: Maintenance manuals.
A7: 2 | B7: Record documents.
A8: 3 | B8: Spare parts and materials.
A9: 4 | B9: Tools.
A10: 5 | B10: Lubricants.
A11: 6 | B11: Fuels.
A12: 7 | B12: Identification systems.
A13: 8 | B13: Control sequences.
A14: 9 | B14: Hazards.
A15: 10 | B15: Cleaning.
A16: 11 | B16: Warranties and bonds.
A17: 12 | B17: Maintenance agreements and similar continuing commitments.
A19: B. | B19: Maintenance Manuals: Organize operation and maintenance data into suitable sets of manageable size. Bind properly indexed data in individual, heavy-duty, 3-ring, vinyl-covered binders, with pocket folders for folded sheet information. Mark appropriate identification on front and spine of each binder. Include the following types of information:
A21: 1 | B21: PM intervals
A22: 2 | B22: Emergency instructions.
A23: 3 | B23: Spare parts list.
A24: 4 | B24: Copies of warranties.
A25: 5 | B25: Wiring diagrams.
A26: 6 | B26: Inspection procedures.
A27: 7 | B27: Shop Drawings and Product Data.
A28: 8 | B28: Replacement schedules for filters, seals, lubricants, etc.
A30: C. | B30: Training: As part of instruction for operating equipment, demonstrate the following procedures:
A32: 1 | B32: Startup.
A33: 2 | B33: Shutdown.
A34: 3 | B34: Emergency operations.
A35: 4 | B35: Noise and vibration adjustments.
A36: 5 | B36: Safety procedures.
A37: 6 | B37: Economy and efficiency adjustments.
A38: 7 | B38: Effective energy utilization.
A39: 8 | B39: Periodic PM procedures.

Sheet App E Resources
A1: Following are available resources for applying recognized best practices in your schools:
A2: Best Practices Guides and Resources
A4: US Environmental Protection Agency (EPA) Indoor Air Quality Tools for Schools Action Kit is available by calling 1-800-438-4318 or online at www.epa.gov/iaq/schools/toolkit.html .
A6: US EPA Integrated Pest Management (IPM) in Schools resources are available online at www.epa.gov/pesticides/ipm/index.htm . The popular EPA booklet, "Pest Control in the School Environment: Adopting IPM" is designed to encourage and assist school officials in examining and improving their pest management practices. It identifies ways to reduce the use of pesticides in school buildings and landscapes, as well as alternative methods of managing pests commonly found in schools. A copy of the booklet may be obtained on-line by contacting the National Service Center for Environmental Publications , or by phone at 1-800-490-9198. The EPA publication number is EPA 735-F-93-012.
A8: US EPA Energy Star Portfolio Manager and the New York State Energy Research and Development Authority (NYSERDA) Energy Smart Schools Program free energy benchmarking service is available by calling 1-866-NYSERDA.
A10: US Department of Energy, Energy Smart Schools Program has numerous resources available at www.rebuild.org/sectors/ess/index.asp
A12: School Operations and Maintenance: BEST PRACTICES FOR CONTROLLING ENERGY COSTS, A Guidebook for K-12 School System Business Officers and Facilities Managers. U.S. Department of Energy Office of Energy Efficiency and Renewable Energy Weatherization and Intergovenmental Program, Rebuild America EnergySmart Schools Program, August 2004.
A15: ADDITIONAL REFS TO BE ADDED
